Cogmind - Beta 14 @@@ ROGUE MODE // 2024.09.10 @ 17:05:31 Player: Dull Result: Destroyed by Enhanced Grunt with Neutron Cannon Performance ------------- Evolutions (3) 1500 Regions Visited (11) 2200 Robots Destroyed (53) 265 Value Destroyed (1136) 1136 Prototype IDs (9) 180 Alien Tech Used (0) 0 Bonus (810) 810 TOTAL SCORE: 6091 Bonus ------- Follower Combat Kills 210 Aligned with FarCom 300 Met Data Miner 300 Cogmind --------- Core Integrity 0/700 Matter 278/300 Energy 100/100 System Corruption 3% Temperature Cool (2) Movement Flying (35) Location -7/Data Miner Parts ------- > --- POWER (1) -------- (None) > --- PROPULSION (6) --- VTOL Module > --- UTILITY (3) ------ (None) > --- WEAPON (3) ------- (None) > --- INVENTORY (5) ---- Light Nuclear Core Improved Heat Sink Heavy Particle Cannon Makeshift Axe Spear Peak State ------------ > --- POWER ------------ Ion Engine > --- PROPULSION ------- Flight Unit Flight Unit Flight Unit Flight Unit Flight Unit Flight Unit > --- UTILITY ---------- Improved Heat Sink Small Storage Unit Particle Charger > --- WEAPON ----------- AWS/Thermal Spear > --- INVENTORY -------- Ion Engine Spread Laser Spread Laser Heavy Particle Cannon Makeshift Axe [Rating: 35] Favorites ----------- Power Ion Engine Engine Ion Engine Power Core Light Nuclear Core Propulsion Aluminum Leg Treads Light Treads Leg Aluminum Leg Wheel Compact Wheel Flight Unit Flight Unit Utility Large Storage Unit Device Heat Sink Storage Large Storage Unit Weapon Small Laser Energy Gun Small Laser Energy Cannon Heavy Particle Cannon Ballistic Gun Assault Rifle Ballistic Cannon Improved Light Cannon Impact Weapon Heavy Hammer Slashing Weapon Katana Piercing Weapon Spear Build | -11 -10 -10 -9 -9 -9 -8 -8 -7 -7 -7 -7 ------- Run | Yrd Mat Min Mat Min Exi Min Mat Fac Low Low Dat Slots Evolved 6 | . . . 2 . . . 2 2 . . . Power . | . . . . . . . . . . . . Propulsion 4 | . . . 1 . . . 2 1 . . . Utility 1 | . . . . . . . . 1 . . . Weapon 1 | . . . 1 . . . . . . . . Parts Attached 77 | 2 14 4 8 11 7 13 6 3 3 4 2 Power 10 | . 3 . . 3 . 3 . . . 1 . Engine 8 | . 2 . . 2 . 3 . . . 1 . Core 2 | . 1 . . 1 . . . . . . . Reactor . | . . . . . . . . . . . . Propulsion 31 | 2 7 1 4 5 . 6 3 1 . 2 . Treads 2 | . 2 . . . . . . . . . . Leg 15 | . 5 1 4 5 . . . . . . . Wheel 2 | 2 . . . . . . . . . . . Hover . | . . . . . . . . . . . . Flight 12 | . . . . . . 6 3 1 . 2 . Utility 14 | . 2 3 1 2 1 2 2 1 . . . Device 10 | . 1 3 1 2 . 1 1 1 . . . Storage 4 | . 1 . . . 1 1 1 . . . . Processor . | . . . . . . . . . . . . Hackware . | . . . . . . . . . . . . Protection . | . . . . . . . . . . . . Artifact . | . . . . . . . . . . . . Weapon 22 | . 2 . 3 1 6 2 1 1 3 1 2 Energy Gun 8 | . 1 . 2 . 2 . 1 . 1 1 . Energy Cannon 3 | . . . . . 1 . . . 1 . 1 Ballistic Gun 1 | . 1 . . . . . . . . . . Ballistic Cannon 1 | . . . 1 . . . . . . . . Launcher . | . . . . . . . . . . . . Special Weapon . | . . . . . . . . . . . . Impact Weapon 3 | . . . . 1 1 1 . . . . . Slashing Weapon 4 | . . . . . 2 1 . 1 . . . Piercing Weapon 2 | . . . . . . . . . 1 . 1 Special Melee Weapon . | . . . . . . . . . . . . Unidentified Prototypes 4 | . . 1 . . 3 . . . . . . Parts Lost 17 | . 3 1 . 1 . . 1 . . 10 1 Power 4 | . 1 . . 1 . . . . . 1 1 Propulsion 9 | . 1 . . . . . 1 . . 7 . Utility 2 | . . 1 . . . . . . . 1 . Weapon 2 | . 1 . . . . . . . . 1 . Highest Loss Streak 7 | . 3 1 . 1 . . 1 . . 7 1 To Critical Strikes . | . . . . . . . . . . . . Average Slot Usage (%) 88 | . 93 98 99 97 90 81 81 92 88 46 19 Engine 6 | . 8 . . 2 11 11 9 7 7 6 7 Core 4 | . 5 14 11 6 . . . . . . . Leg 22 | . 10 28 33 33 33 14 . . . . . Flight 7 | . . . . . . 18 45 46 46 19 7 Device 10 | . 7 12 10 11 11 11 9 15 11 . . Storage 10 | . 14 14 11 11 11 5 8 7 7 5 . Energy Gun 17 | . 19 14 22 22 21 15 9 7 10 12 . Ballistic Gun 3 | . 8 14 10 . . . . . . . . Ballistic Cannon 1 | . . . . 6 . . . . . . . Impact Weapon 1 | . . . . 4 2 1 . . . . . Peak Build Rating 35 | 6 10 18 14 14 29 27 29 33 35 30 11 Average Rating 16 | 6 7 9 12 12 21 25 26 32 31 11 5 On Entrance 16 | 6 6 10 10 14 12 25 26 27 33 30 4 Naked Turns . | . . . . . . . . . . . . Heaviest Build 51 | 11 29 29 34 34 51 37 21 24 24 24 13 Greatest Support 40 | 32 40 20 30 30 30 30 20 24 24 24 4 Greatest Overweight (x) 4 | . 1 1 1 1 1 4 1 . . 3 3 Average Overweight (x) . | . . 1 . . . 1 . . . . 1 Largest Inventory Capacity 15 | 8 15 15 15 15 15 15 8 8 8 8 5 Average Capacity 12 | 8 9 15 15 15 15 9 7 8 8 7 5 Most Carried 15 | 6 11 15 15 15 15 15 7 6 6 8 5 Average Carried 11 | 4 7 13 14 14 15 9 4 4 5 5 4 Final Capacity 15 | 8 15 15 15 15 15 5 8 8 8 5 5 Final Carried 15 | 6 11 15 15 15 15 5 7 4 6 5 5 Class Distribution -------------------- 36% | Scavenger-Mutant 34% | Scavenger-Gunner 13% | Mutant 9% | Scavenger-Sprinter 5% | Scavenger-Skirmisher Dominant Class ---------------- Mutant | -10/Materials Scavenger-Mutant | -10/Mines Scavenger-Gunner | -9/Materials Scavenger-Gunner | -9/Mines Scavenger-Gunner | -9/Exiles Scavenger-Mutant | -8/Mines Scavenger-Sprinter | -8/Materials Scavenger-Sprinter | -7/Factory Scavenger-Sprinter | -7/Lower Caves Mutant | -7/Lower Caves Mutant | -7/Data Miner Resources | -11 -10 -10 -9 -9 -9 -8 -8 -7 -7 -7 -7 ----------- Run | Yrd Mat Min Mat Min Exi Min Mat Fac Low Low Dat Matter Collected 1101 | 220 142 105 118 145 . 200 . . 115 56 . Remotely 229 | . . 31 118 80 . . . . . . . Salvage Created 1777 | 88 330 347 153 275 . 301 45 . 137 101 . Parts 100 | 2 21 15 9 8 . 31 2 . 4 8 . Haulers Intercepted 1 | . 1 . . . . . . . . . . Recyclers Shooed 4 | . 1 2 . . . 1 . . . . . Parts Field Recycled . | . . . . . . . . . . . . Retrieved Matter . | . . . . . . . . . . . . Parts Self-Destructed 15 | . . . . . . . . . 6 9 . Prevented 1 | . . . . . . . . . 1 . . Kills | -11 -10 -10 -9 -9 -9 -8 -8 -7 -7 -7 -7 ------- Run | Yrd Mat Min Mat Min Exi Min Mat Fac Low Low Dat Combat Hostiles Destroyed 42 | . 8 5 1 5 . 14 1 . 3 5 . Melee 3 | . . . . 1 . 2 . . . . . Guns 38 | . 8 5 1 3 . 12 1 . 3 5 . Cannons 1 | . . . . 1 . . . . . . . Classes Destroyed 12 | 1 4 . 2 2 . 1 . . 1 1 . Builder 1 | . . . . . . 1 . . . . . Tunneler 1 | . . . . 1 . . . . . . . Hauler 1 | . 1 . . . . . . . . . . Recycler 7 | 1 . 3 1 1 . 1 . . . . . Operator 1 | . 1 . . . . . . . . . . Watcher 1 | . . . 1 . . . . . . . . Swarmer 24 | . 3 3 . . . 14 . . . 4 . Grunt 14 | . 5 2 . 4 . . 1 . 2 . . Brawler 1 | . . . . . . . . . 1 . . Sentry 1 | . . . 1 . . . . . . . . Programmer 1 | . . . . . . . . . . 1 . Assembled 1 | . . . . 1 . . . . . . . Best Kill Streak 7 | 1 3 5 1 2 . 7 1 . 3 4 . Combat Bots Only 6 | . 3 3 1 2 . 6 1 . 3 4 . Max Kills in Single Turn 2 | 1 1 1 1 1 . 2 1 . 1 1 . Gunslinging . | . . . . . . . . . . . . Exploded . | . . . . . . . . . . . . Melee 1 | . . . . 1 . 1 . . . . . Uniques/NPCs Destroyed . | . . . . . . . . . . . . Combat | -11 -10 -10 -9 -9 -9 -8 -8 -7 -7 -7 -7 -------- Run | Yrd Mat Min Mat Min Exi Min Mat Fac Low Low Dat Hostile Shots Fired 284 | . 106 19 6 35 . 32 5 . 3 64 14 Missed 61 | . 25 3 3 5 . 9 2 . . 9 5 Damage Taken 3049 | . 774 160 63 387 . 175 39 . 49 979 423 Core 1067 | . 219 15 . 39 . 44 12 . . 353 385 Absorbed by Shields . | . . . . . . . . . . . . Regen/Repaired (Parts) 18 | . . . 18 . . . . . . . . Core Remaining (%) 70 | 100 . 6 . . . 79 97 . . . . Volleys Fired 108 | 3 43 16 6 18 . 8 . . 4 9 1 Largest 3 | 2 2 2 3 3 . 1 . . 1 2 1 Hottest 135 | 90 90 60 116 135 . 56 . . 65 130 75 Shots Fired 263 | 6 78 32 18 46 . 41 9 . 12 20 1 Gun 252 | 6 78 32 18 36 . 41 9 . 12 20 . Cannon 11 | . . . . 10 . . . . . . 1 Launcher . | . . . . . . . . . . . . Special . | . . . . . . . . . . . . Kinetic 50 | . 18 16 6 10 . . . . . . . Thermal 213 | 6 60 16 12 36 . 41 9 . 12 20 1 Explosive . | . . . . . . . . . . . . Electromagnetic . | . . . . . . . . . . . . Robot Hit Streak 13 | 2 6 13 6 5 . 7 3 . 4 5 . Robot Miss Streak 7 | 1 3 3 2 3 . 2 2 . 3 7 2 Penetration Max . | . . . . . . . . . . . . Secondary Targets 1 | . . 1 . . . . . . . . . Max Gunslinging Chain 1 | . . 1 . . . . . . . . . Autonomous 56 | . . . . . . 33 9 . 8 6 . Shots Hit Robots 179 | 4 48 21 13 28 . 30 6 . 12 17 . Core Hits 88 | 2 18 13 5 9 . 15 1 . 10 15 . Critical Kills . | . . . . . . . . . . . . Critical Parts Destroyed . | . . . . . . . . . . . . Critical Strikes 4 | . 1 . . 2 . 1 . . . . . Burn 3 | . 1 . . 1 . 1 . . . . . Blast 1 | . . . . 1 . . . . . . . Melee Attacks 18 | . . . . 15 . 3 . . . . . Impact 15 | . . . . 15 . . . . . . . Slashing 3 | . . . . . . 3 . . . . . Piercing . | . . . . . . . . . . . . Sneak Attacks 1 | . . . . . . 1 . . . . . Combat Hostiles . | . . . . . . . . . . . . Follow-up Attacks . | . . . . . . . . . . . . Damage Inflicted 3368 | 45 554 248 160 621 . 890 197 . 314 339 . Guns 2857 | 45 554 248 160 245 . 755 197 . 314 339 . Cannons 114 | . . . . 114 . . . . . . . Explosions . | . . . . . . . . . . . . Melee 397 | . . . . 262 . 135 . . . . . Ramming . | . . . . . . . . . . . . Kinetic 449 | . 167 116 52 114 . . . . . . . Thermal 2522 | 45 387 132 108 245 . 755 197 . 314 339 . Explosive . | . . . . . . . . . . . . Electromagnetic . | . . . . . . . . . . . . Impact 262 | . . . . 262 . . . . . . . Slashing 135 | . . . . . . 135 . . . . . Piercing . | . . . . . . . . . . . . Highest Corruption 3 | . . . . . . . . . . 3 3 Average Corruption 2 | . . . . . . . . . . 2 3 Corruption Purged . | . . . . . . . . . . . . Corruption Blocked . | . . . . . . . . . . . . Effects 8 | . . . . . . . . . . 7 1 Message Errors 1 | . . . . . . . . . . 1 . Matter Fused 4 | . . . . . . . . . . 3 1 Energy Discharges 1 | . . . . . . . . . . 1 . Data Loss (major) 1 | . . . . . . . . . . 1 . Alerts 1 | . . . . . . . . . . 1 . Overload Shots . | . . . . . . . . . . . . Overflow Damage 57 | . . . . 11 . 46 . . . . . Projectiles . | . . . . . . . . . . . . Explosions . | . . . . . . . . . . . . Melee 57 | . . . . 11 . 46 . . . . . Knockbacks . | . . . . . . . . . . . . Impact . | . . . . . . . . . . . . Kinetic . | . . . . . . . . . . . . Secondary . | . . . . . . . . . . . . Self-Inflicted Damage . | . . . . . . . . . . . . Shots . | . . . . . . . . . . . . Rammed . | . . . . . . . . . . . . Targets Rammed . | . . . . . . . . . . . . Kicked . | . . . . . . . . . . . . Crushed . | . . . . . . . . . . . . Highest Temperature 460 | 90 355 460 81 288 . . 2 . 121 210 18 Average Temperature 95 | 46 129 97 33 107 . . 2 . 58 64 13 Received Heat Transfer 741 | . 216 45 15 132 . . 36 . 27 270 . Effects 6 | . 1 1 . 4 . . . . . . . Energy Bleed 1 | . . . . 1 . . . . . . . Interference 4 | . 1 . . 3 . . . . . . . Damage (minor) 1 | . . 1 . . . . . . . . . Siege Activations . | . . . . . . . . . . . . Robots Corrupted . | . . . . . . . . . . . . Combat Hostiles . | . . . . . . . . . . . . Parts Fried . | . . . . . . . . . . . . Impact Corruptions 1 | . . . . 1 . . . . . . . Robots Melted . | . . . . . . . . . . . . Combat Hostiles . | . . . . . . . . . . . . Parts Melted 7 | . 1 . 1 1 . 1 . . 1 2 . Heat Transferred 4549 | 124 1067 300 261 657 . 1147 259 . 366 368 . Parts Sabotaged . | . . . . . . . . . . . . Parts Stolen . | . . . . . . . . . . . . Parts Stripped . | . . . . . . . . . . . . Power Chain Reactions . | . . . . . . . . . . . . Alert | -11 -10 -10 -9 -9 -9 -8 -8 -7 -7 -7 -7 ------- Run | Yrd Mat Min Mat Min Exi Min Mat Fac Low Low Dat Peak Influence 341 | 5 287 88 151 296 . 341 129 58 . . . Initial 92 | . 3 33 31 58 . . 92 58 . . . Average 128 | 3 154 63 94 128 . 223 82 58 . . . Maximum Alert Level 1 | . 1 . . 1 . 1 . . . . . Low Security (%) 79 | 100 66 100 100 80 . 42 100 100 . . . Level 1 20 | . 33 . . 19 . 57 . . . . . Level 2 . | . . . . . . . . . . . . Level 3 . | . . . . . . . . . . . . Level 4 . | . . . . . . . . . . . . Level 5 . | . . . . . . . . . . . . High Security . | . . . . . . . . . . . . Max Security . | . . . . . . . . . . . . Squads Dispatched 3 | . 1 . 1 . . . 1 . . . . Investigation . | . . . . . . . . . . . . Extermination . | . . . . . . . . . . . . Reinforcement 3 | . 1 . 1 . . . 1 . . . . Assault . | . . . . . . . . . . . . Garrison . | . . . . . . . . . . . . Intercept . | . . . . . . . . . . . . Searches Triggered . | . . . . . . . . . . . . Construction Impeded . | . . . . . . . . . . . . Haulers Reinforced . | . . . . . . . . . . . . Active Scanning Responses . | . . . . . . . . . . . . Cargo Convoy Interrupts . | . . . . . . . . . . . . Stealth | -11 -10 -10 -9 -9 -9 -8 -8 -7 -7 -7 -7 --------- Run | Yrd Mat Min Mat Min Exi Min Mat Fac Low Low Dat Distress Signals 4 | . 4 . . . . . . . . . . Communications Jammed . | . . . . . . . . . . . . Distress Signals . | . . . . . . . . . . . . Times Spotted 82 | . 17 5 5 11 . 16 3 . 4 13 8 Peak Tracking Total 8 | . 6 2 1 3 . 7 3 . 4 8 4 Tactical Retreats 4 | . 2 . . . . . 1 . 1 . . Traps | -11 -10 -10 -9 -9 -9 -8 -8 -7 -7 -7 -7 ------- Run | Yrd Mat Min Mat Min Exi Min Mat Fac Low Low Dat Traps Triggered 1 | . . . 1 . . . . . . . . Indirectly . | . . . . . . . . . . . . Trap Hack Attempts . | . . . . . . . . . . . . Triggered . | . . . . . . . . . . . . Disarmed . | . . . . . . . . . . . . Reprogrammed . | . . . . . . . . . . . . Reused . | . . . . . . . . . . . . Traps Extracted . | . . . . . . . . . . . . Installed . | . . . . . . . . . . . . Triggered 2 | . . . . . . . . . 1 1 . Machines | -11 -10 -10 -9 -9 -9 -8 -8 -7 -7 -7 -7 ---------- Run | Yrd Mat Min Mat Min Exi Min Mat Fac Low Low Dat Machines Disabled 3 | . . . . . . 2 . . . . 1 Max in Single Turn 1 | . . . . . . 1 . . . . 1 Machines Repaired . | . . . . . . . . . . . . Machines Dismantled . | . . . . . . . . . . . . Machines Sabotaged . | . . . . . . . . . . . . Overloaded Fab Kills . | . . . . . . . . . . . . Hacking | -11 -10 -10 -9 -9 -9 -8 -8 -7 -7 -7 -7 --------- Run | Yrd Mat Min Mat Min Exi Min Mat Fac Low Low Dat Machines Accessed 9 | . 1 . 4 . . 1 1 . 1 . 1 Terminals 6 | . 1 . 3 . . 1 1 . . . . Fabricators . | . . . . . . . . . . . . Repair Stations 1 | . . . 1 . . . . . . . . Recycling Units . | . . . . . . . . . . . . Scanalyzers . | . . . . . . . . . . . . Garrison Access . | . . . . . . . . . . . . Total Hacks 26 | . 2 . 9 . . 4 2 . 1 . 8 Successful 14 | . 1 . 4 . . . . . 1 . 8 Failed 12 | . 1 . 5 . . 4 2 . . . . Catastrophic 4 | . . . 2 . . 1 1 . . . . Database Lockouts . | . . . . . . . . . . . . Manual 12 | . 2 . 2 . 1 3 2 . 2 . . Terminals 15 | . 2 . 7 . . 4 2 . . . . Fabricators . | . . . . . . . . . . . . Repair Stations 2 | . . . 2 . . . . . . . . Recycling Units . | . . . . . . . . . . . . Scanalyzers . | . . . . . . . . . . . . Garrison Access . | . . . . . . . . . . . . Terminal Hacks 12 | . 1 . 2 . . . . . 1 . 8 Part Schematic 8 | . . . . . . . . . . . 8 Open Door 1 | . . . . . . . . . 1 . . Branch Access Points 2 | . 1 . 1 . . . . . . . . Emergency Access Points 1 | . . . 1 . . . . . . . . Fabricator Hacks . | . . . . . . . . . . . . Repair Station Hacks 2 | . . . 2 . . . . . . . . Scan Component 1 | . . . 1 . . . . . . . . Repair 1 | . . . 1 . . . . . . . . Recycling Unit Hacks . | . . . . . . . . . . . . Scanalyzer . | . . . . . . . . . . . . Garrison Access Hacks . | . . . . . . . . . . . . Unauthorized Hacks . | . . . . . . . . . . . . Terminals . | . . . . . . . . . . . . Fabricators . | . . . . . . . . . . . . Repair Stations . | . . . . . . . . . . . . Recycling Units . | . . . . . . . . . . . . Scanalyzers . | . . . . . . . . . . . . Garrison Access . | . . . . . . . . . . . . Data Cores Recovered . | . . . . . . . . . . . . Used . | . . . . . . . . . . . . Hacking Detections 4 | . . . 2 . . 1 1 . . . . Full Trace Events . | . . . . . . . . . . . . Feedback Events . | . . . . . . . . . . . . Feedback Blocked . | . . . . . . . . . . . . Robot Schematics Acquired . | . . . . . . . . . . . . Robots Built . | . . . . . . . . . . . . Authchips . | . . . . . . . . . . . . Time . | . . . . . . . . . . . . Total Robot Build Rating . | . . . . . . . . . . . . Part Schematics Acquired 8 | . . . . . . . . . . . 8 Parts Built . | . . . . . . . . . . . . Authchips . | . . . . . . . . . . . . Time . | . . . . . . . . . . . . Total Part Build Rating . | . . . . . . . . . . . . Parts Repaired 1 | . . . 1 . . . . . . . . Time 26 | . . . 26 . . . . . . . . Parts Recycled . | . . . . . . . . . . . . Recycled Matter . | . . . . . . . . . . . . Retrieved Matter . | . . . . . . . . . . . . Retrieved Components . | . . . . . . . . . . . . Parts Scanalyzed . | . . . . . . . . . . . . Part Schematics Acquired . | . . . . . . . . . . . . Parts Damaged . | . . . . . . . . . . . . Bothacking | -11 -10 -10 -9 -9 -9 -8 -8 -7 -7 -7 -7 ------------ Run | Yrd Mat Min Mat Min Exi Min Mat Fac Low Low Dat Used RIF Installer . | . . . . . . . . . . . . Robots Hacked . | . . . . . . . . . . . . Non-combat . | . . . . . . . . . . . . Combat . | . . . . . . . . . . . . Robot Hacks Applied . | . . . . . . . . . . . . Relay Couplers Released . | . . . . . . . . . . . . Fabnet Peak Effective % . | . . . . . . . . . . . . Robots Rewired . | . . . . . . . . . . . . Allies Hacked . | . . . . . . . . . . . . Hacks Repelled . | . . . . . . . . . . . . Allies | -11 -10 -10 -9 -9 -9 -8 -8 -7 -7 -7 -7 -------- Run | Yrd Mat Min Mat Min Exi Min Mat Fac Low Low Dat Total Allies 6 | . . 3 . 3 . . . . . . . Largest Group 5 | . . 3 3 5 3 2 1 . . . . Highest-Rated Group 114 | . . 40 40 114 52 32 16 . . . . Highest-Rated Ally 31 | . . 16 16 31 20 16 16 . . . . Total Orders 1 | . . . . 1 . . . . . . . AID 1 | . . . . 1 . . . . . . . Ally Attacks 58 | . . 1 6 40 . 9 2 . . . . Total Damage 734 | . . . 74 518 . 110 32 . . . . Kills 14 | . . . 1 11 . 2 . . . . . Allies Corrupted . | . . . . . . . . . . . . Allies Melted . | . . . . . . . . . . . . Intel | -11 -10 -10 -9 -9 -9 -8 -8 -7 -7 -7 -7 ------- Run | Yrd Mat Min Mat Min Exi Min Mat Fac Low Low Dat Robot Analysis Total . | . . . . . . . . . . . . Derelict Logs Recovered 4 | . . 1 . 1 . . . . . 2 . Drone Launches . | . . . . . . . . . . . . Drone Recoveries . | . . . . . . . . . . . . Exploration | -11 -10 -10 -9 -9 -9 -8 -8 -7 -7 -7 -7 ------------- Run | Yrd Mat Min Mat Min Exi Min Mat Fac Low Low Dat Turns Passed 5044 | 36 451 679 389 1007 1040 622 201 11 189 302 117 Spaces Moved 3131 | 21 205 308 210 495 538 370 227 29 317 320 91 Core . | . . . . . . . . . . . . Treads 40 | . 40 . . . . . . . . . . Legs 1768 | . 94 308 210 495 538 123 . . . . . Wheels 92 | 21 71 . . . . . . . . . . Hover . | . . . . . . . . . . . . Flight 1231 | . . . . . . 247 227 29 317 320 91 Fastest Speed 23 | 100 100 190 120 120 120 114 28 25 25 23 35 Average Speed 131 | 100 135 190 155 175 189 140 29 25 25 78 122 Slowest Speed 380 | 100 190 190 190 190 190 380 108 25 25 275 275 Overloaded Moves . | . . . . . . . . . . . . Propulsion Burnouts . | . . . . . . . . . . . . Robots Hopped . | . . . . . . . . . . . . Cave-ins Triggered . | . . . . . . . . . . . . Exploration Rate (%) 48 | 2 38 76 27 73 91 65 25 1 50 57 76 Regions Visited 11 Branch Regions 7 Pre-discovered Areas 1 | . . . . . . . . . . 1 . Known Exits Taken 3 | . 1 . 1 . . 1 . . . . . Unknown Exits Taken 8 | 1 . 1 . 1 1 . 1 1 1 1 . Scrap Searched 3 | . . 1 . 2 . . . . . . . Spaces Dug . | . . . . . . . . . . . . Terrain Destroyed 9 | . . . . . . 7 2 . . . . Melee . | . . . . . . . . . . . . Projectile 9 | . . . . . . 7 2 . . . . AOE . | . . . . . . . . . . . . Terrain Rammed . | . . . . . . . . . . . . Walls Destroyed . | . . . . . . . . . . . . Machines Disabled . | . . . . . . . . . . . . Actions | -11 -10 -10 -9 -9 -9 -8 -8 -7 -7 -7 -7 --------- Run | Yrd Mat Min Mat Min Exi Min Mat Fac Low Low Dat Total 3835 | 29 306 370 264 572 563 465 360 31 421 358 96 Wait 397 | . 25 37 29 23 . 47 122 . 94 20 . Move 3120 | 20 204 307 209 494 537 369 226 28 316 319 91 Hop . | . . . . . . . . . . . . Pick Up 37 | 2 11 4 5 1 1 4 4 . 2 3 . Fast Attach 16 | . 2 2 1 2 6 2 1 . . . . Attach 19 | . 2 . 3 . . . 4 3 1 4 2 Detach 5 | . . . . . . . 2 . 1 . 2 Swap 42 | 2 10 2 4 9 1 11 1 . 2 . . Drop 64 | 2 9 2 7 10 9 21 . . 1 3 . Fire 108 | 3 43 16 6 18 . 8 . . 4 9 1 Melee 18 | . . . . 15 . 3 . . . . . Ram . | . . . . . . . . . . . . Kick . | . . . . . . . . . . . . Crush . | . . . . . . . . . . . . Escape Stasis . | . . . . . . . . . . . . Rewire 9 | . . . . . 9 . . . . . . Trap . | . . . . . . . . . . . . Miscellaneous . | . . . . . . . . . . . . Route ------- -11/Scrapyard -10/Materials (discovered 2 exits: *Min x2) -10/Mines (discovered 2 exits: *Mat x2) -9/Materials -9/Mines (discovered 3 exits: *Mat x2 / *Exi) -9/Exiles -8/Mines -8/Materials (discovered 2 exits: [*Fac] / Sto) -7/Factory -7/Lower Caves -7/Lower Caves -7/Data Miner (discovered 1 exit: [*Pro]) History --------- Turn | Location | Event 4 | -11/Scrapyard | Discovered new exit (range 3) 37 | -11/Scrapyard | Entered Materials 62 | -10/Materials | Identified exit to Mines 194 | -10/Materials | Core integrity fell below 50% 244 | -10/Materials | Lost 3 parts (1p1n1w) 304 | -10/Materials | Core integrity fell below 20% 309 | -10/Materials | Build established: Mutant 488 | -10/Materials | Entered Mines 582 | -10/Mines | Discovered new exit (range 14) 617 | -10/Mines | Build established: Scavenger-Mutant 861 | -10/Mines | Assisted by bots powering up and referring to "LRC-V3" 1030 | -10/Mines | Found a damaged Exp. Sensor Array with a note attached 1034 | -10/Mines | Found Prototype Device 1034 | -10/Mines | Identified Exp. Sensor Array 1061 | -10/Mines | Discovered new exit (range 6) 1167 | -10/Mines | Entered Materials 1167 | -9/Materials | Accompanied by 3 allies 1167 | -9/Materials | Evolved 2 slots: Propulsion x1, Weapon x1 1321 | -9/Materials | Identified exit to Mines 1386 | -9/Materials | Repaired Tractor Beam 1556 | -9/Materials | Entered Mines 1556 | -9/Mines | Accompanied by 3 allies 1591 | -9/Mines | Met a Derelict bent on vengeance 1676 | -9/Mines | Build established: Scavenger-Gunner 1796 | -9/Mines | Discovered new exit (range 9) 1918 | -9/Mines | Received a Mining Laser from a helpful Derelict 2092 | -9/Mines | Identified exit to Materials 2114 | -9/Mines | Excavation squad dispatched 2114 | -9/Mines | A large section of the Mines collapsed 2404 | -9/Mines | Build established: Scavenger-Mutant 2553 | -9/Mines | Deemed a non-threat by the Exiles lab entrance 2553 | -9/Mines | Discovered new exit (range 5) 2563 | -9/Mines | Entered Exiles 2563 | -9/Exiles | Accompanied by 3 allies 2611 | -9/Exiles | Met 8R-AWN 2641 | -9/Exiles | Met EX-HEX 2696 | -9/Exiles | Met EX-BIN 2736 | -9/Exiles | Aligned with FarCom system 2738 | -9/Exiles | Given EX-Vault access code 2790 | -9/Exiles | Opened EX-Vault 2802 | -9/Exiles | Found Prototype Slashing Weapon 2802 | -9/Exiles | Identified Longsword +1 2809 | -9/Exiles | Found Prototype Energy Gun 2809 | -9/Exiles | Identified AWS/Thermal 2815 | -9/Exiles | Found Prototype Energy Cannon 2815 | -9/Exiles | Identified Firepult 2882 | -9/Exiles | Warned to stay clear of 0b10 Research branches 2947 | -9/Exiles | Met EX-DEC 3011 | -9/Exiles | Discovered new exit (range 14) 3090 | -9/Exiles | Build established: Scavenger-Gunner 3147 | -9/Exiles | Visited The Gauntlet 3603 | -9/Exiles | Left Exiles lab with AWS/Thermal 3603 | -9/Exiles | Entered Mines 3603 | -8/Mines | Accompanied by 2 allies 4162 | -8/Mines | Build established: Scavenger-Mutant 4213 | -8/Mines | Discovered exit to Materials (range 5) 4225 | -8/Mines | Entered Materials 4225 | -8/Materials | Accompanied by 1 ally 4225 | -8/Materials | Evolved 2 slots: Propulsion x2 4226 | -8/Materials | Identified exit to Storage 4409 | -8/Materials | Discovered new exit (range 16) 4426 | -8/Materials | Entered Factory 4426 | -7/Factory | Evolved 2 slots: Propulsion x1, Utility x1 4435 | -7/Factory | Discovered new exit (range 8) 4437 | -7/Factory | Entered Lower Caves 4561 | -7/Lower Caves | Build established: Scavenger-Sprinter 4625 | -7/Lower Caves | Discovered new exit (range 5) 4626 | -7/Lower Caves | Entered another Lower Caves area 4654 | -7/Lower Caves | AWS/Thermal suddenly broke down 4731 | -7/Lower Caves | Learned Factory garrison access intel 4740 | -7/Lower Caves | Lost 7 parts (6n1u) 4875 | -7/Lower Caves | Attacked by a faux Warlord 4884 | -7/Lower Caves | Lost 3 parts (1p1n1w) 4909 | -7/Lower Caves | Core integrity fell below 50% 4917 | -7/Lower Caves | Discovered new exit (range 11) 4928 | -7/Lower Caves | Entered Data Miner 4928 | -7/Data Miner | Discovered new exit (range 6) 4950 | -7/Data Miner | Met Data Miner 4999 | -7/Data Miner | Received God Mode back door access code from Data Miner 5021 | -7/Data Miner | Data Conduit disabled 5030 | -7/Data Miner | Build established: Mutant 5044 | -7/Data Miner | Core integrity fell below 20% 5045 | -7/Data Miner | Destroyed by Enhanced Grunt with Neutron Cannon Last Messages --------------- >>Schematic "Imp. Corruption Screen" Downloading schematic... Imp. Corruption Screen Rating: 6 Schematic downloaded. >>Schematic "Adv. Plasma Cannon" Downloading schematic... Adv. Plasma Cannon Rating: 6 Schematic downloaded. 04986_ Connecting with ORACLE Interface... Data Miner: I've just received further instructions. God Mode is nearly complete and we think you might be able to put it to better use than Warlord, so if you see an opportunity, hack it and enter \\KWHA to gain control via the back door I've installed. Now off with you. 05021_ Data Conduit disabled. 05021_ Data Miner disappears through a trap door. 05025_ System corrupted: Matter fused (-7). 05040_ Ion Engine destroyed. Map ----- +----------------------------------------------------+ | | | | | | | | | | | | | | | | | | | | | | | | | | | ????????????????????????????????????????????????? | | ????????????????????????????????????????????????? | | ????????????????????????????????????????????????? | | ????????????????????????????????????????????????? | | ?????????????????????????????????????####???????? | | ??????###############?????##?#?????### #???????? | | ?????"""""""""""""""###### # #?#?### #???????? | | ????""""""""" """"""""# # # # ## < ##???????? | | ????""""""""" g ######??? | | ????""""" gg #??? | | ???"""""" g #??? | | ???"""""" #??? | | ???"""""" @ ##??? | | ????"""""" """"""""""""""""#####???? | | ????""""""" """"###############???????? | | ????""""""" """""###?????????????????????? | | ?????"""""""" "#####???????????????????????? | | ??????######"## "#???????????????????????????? | | ???????????#"### "#???????????????????????????? | | ???????????#"### "#???????????????????????????? | | ???????????#"## "#???????????????????????????? | | ?????????????## "#???????????????????????????? | | ?????????????# "#???????????????????????????? | | ?????????????### "#???????????????????????????? | | ???????????????# "##??????????????????????????? | | ??????????????## ""#??????????????????????????? | | ???????????#?## ""#??????????????????????????? | | ??????????##"#"X ""#??????????????????????????? | | ??????????""""" "####???????????????????????? | | ??????????""""" X"""""???????????????????????? | | ??????????##"#"X "##"#???????????????????????? | | ???????????#?## X""""#???????????????????????? | | ??????????????## "##"#???????????????????????? | | ???????????????#######??????????????????????????? | | ????????????????????????????????????????????????? | | ????????????????????????????????????????????????? | | ????????????????????????????????????????????????? | +----------------------------------------------------+ Best States ------------- Heat Dissipation 48 Energy Generation 14 Energy Capacity 250 Matter Stores 300 Matter Capacity 300 Sight Range 16 Terrain Scan Density 10 Evasion (%) 65 Recoil Reduction 2 Particle Charging 15 Item Schematics ----------------- Combat Drone Bay | -7/Data Miner | Free Lgt. Regenerative Plating | -7/Data Miner | Free Biomechanical Wings | -7/Data Miner | Free Exp. Targeting Computer | -7/Data Miner | Free Imp. Heavy Machine Gun | -7/Data Miner | Free Arm. Medium Treads | -7/Data Miner | Free Imp. Corruption Screen | -7/Data Miner | Free Adv. Plasma Cannon | -7/Data Miner | Free Robot Schematics ------------------ None Fabricated ------------ Nothing Alien Tech Used ----------------- None Achievements -------------- None Challenges ------------ None Game ------ Seed GodShrapnelBuckler Manual? 0 Play Time 00:37:25 Cumulative 43.5 hours Start 2024.09.10 @ 16:26:14 End 2024.09.10 @ 17:05:31 Sessions 1 Manual Loads 0 Difficulty Rogue Special Mode None Game No. 60 Rogue 60 Adventurer 0 Explorer 0 Win Type - Total 0 Types 0/0/0/0/0/0/0/0/0 Lore% 9 Gallery% 41 Achievement% 32 Wizard Run 0 Options --------- Layout 0 ASCII 0 Keyboard 0 Movement Mouse Keybinds 1 Fullscreen 1 Font 18/TerminusBold Map View 76x50 Zoom Use 0% Tactical HUD 1 Map Filters NONE Filters NONE Steam 1 RUN: efeee354-b741-4e1f-8688-80ff19673fd2